[Event "20th Rochefort Chess Festival - Masters"]
[Site "Rochefort, France"]
[Date "2022.02.13"]
[Round "2.3"]
[White "Roselle, Tristan"]
[Black "Demuth, Adrien"]
[Result "0-1"]
[TimeControl "1h30 + [30'']"]
[WhiteElo "2250"]
[BlackElo "2489"]

1. e4 {[%clk 01:13:40]} {[%emt 00:17:18]} g6 {[%clk 01:30:09]} {[%emt
00:00:52]} 2. d4 {[%clk 01:13:35]} {[%emt 00:00:35]} Bg7 {[%clk 01:30:33]}
{[%emt 00:00:06]} 3. Nc3 {[%clk 01:13:51]} {[%emt 00:00:13]} a6 {[%clk
01:28:49]} {[%emt 00:02:14]} 4. Bf4 {[%clk 01:13:01]} {[%emt 00:01:20]} d6
{[%clk 01:27:34]} {[%emt 00:01:46]} 5. Nf3 {[%clk 01:12:05]} {[%emt 00:01:26]}
b5 {[%clk 01:20:15]} {[%emt 00:07:50]} 6. Qd2 {[%clk 01:10:26]} {[%emt
00:02:08]} Bb7 {[%clk 01:19:49]} {[%emt 00:00:56]} 7. Bd3 {[%clk 01:07:39]}
{[%emt 00:03:17]} Nd7 {[%clk 01:19:31]} {[%emt 00:00:49]} 8. a4 {[%clk
01:06:53]} {[%emt 00:01:16]} b4 {[%clk 01:12:29]} {[%emt 00:07:32]} 9. Ne2
{[%clk 01:07:14]} {[%emt 00:00:08]} c5 {[%clk 01:08:37]} {[%emt 00:04:23]} 10.
c3 {[%clk 01:07:30]} {[%emt 00:00:13]} Ngf6 {[%clk 01:04:20]} {[%emt 00:04:47]}
11. Ng3 {[%clk 01:07:40]} {[%emt 00:00:19]} O-O {[%clk 00:49:26]} {[%emt
00:15:25]} 12. cxb4 {[%clk 00:58:33]} {[%emt 00:09:37]} cxd4 {[%clk 00:44:15]}
{[%emt 00:05:41]} 13. a5 {[%clk 00:58:55]} {[%emt 00:00:08]} e5 {[%clk
00:42:12]} {[%emt 00:02:33]} 14. Bg5 {[%clk 00:51:58]} {[%emt 00:07:26]} d5
{[%clk 00:41:37]} {[%emt 00:01:06]} 15. Qe2 {[%clk 00:51:14]} {[%emt 00:01:14]}
Qe7 {[%clk 00:35:25]} {[%emt 00:06:42]} 16. Bd2 {[%clk 00:51:33]} {[%emt
00:00:11]} dxe4 {[%clk 00:28:33]} {[%emt 00:07:23]} 17. Nxe4 {[%clk 00:51:53]}
{[%emt 00:00:09]} Nd5 {[%clk 00:24:10]} {[%emt 00:04:54]} 18. Nc5 {[%clk
00:49:15]} {[%emt 00:03:08]} Nxc5 {[%clk 00:21:49]} {[%emt 00:02:51]} 19. bxc5
{[%clk 00:49:33]} {[%emt 00:00:11]} e4 {[%clk 00:19:22]} {[%emt 00:02:57]} 20.
Bg5 {[%clk 00:48:50]} {[%emt 00:01:13]} f6 {[%clk 00:07:12]} {[%emt 00:12:41]}
21. Bxe4 {[%clk 00:48:27]} {[%emt 00:00:52]} Rfe8 {[%clk 00:07:24]} {[%emt
00:00:19]} 0-1

[Event "20th Rochefort Chess Festival - Masters"]
[Site "Rochefort, France"]
[Date "2022.02.13"]
[Round "2.5"]
[White "Marie, Maxime"]
[Black "Duboue, Peio"]
[Result "0-1"]
[TimeControl "1h30 + [30'']"]
[WhiteElo "2175"]
[BlackElo "2412"]

1. c4 {[%clk 01:20:43]} {[%emt 00:04:46]} e5 {[%clk 01:30:35]} {[%emt
00:00:24]} 2. g3 {[%clk 01:20:29]} {[%emt 00:00:44]} Nf6 {[%clk 01:30:43]}
{[%emt 00:00:21]} 3. Bg2 {[%clk 01:20:54]} {[%emt 00:00:05]} d5 {[%clk
01:31:05]} {[%emt 00:00:08]} 4. cxd5 {[%clk 01:21:17]} {[%emt 00:00:08]} Nxd5
{[%clk 01:31:31]} {[%emt 00:00:04]} 5. Nc3 {[%clk 01:21:31]} {[%emt 00:00:17]}
Nb6 {[%clk 01:31:54]} {[%emt 00:00:06]} 6. d3 {[%clk 01:21:37]} {[%emt
00:00:24]} Be7 {[%clk 01:32:15]} {[%emt 00:00:08]} 7. Nh3 {[%clk 01:20:54]}
{[%emt 00:01:13]} h5 {[%clk 01:30:16]} {[%emt 00:02:29]} 8. f4 {[%clk
01:20:20]} {[%emt 00:01:05]} Nc6 {[%clk 01:26:42]} {[%emt 00:04:03]} 9. fxe5
{[%clk 01:09:40]} {[%emt 00:11:10]} Nxe5 {[%clk 01:25:08]} {[%emt 00:02:04]} 10.
Nf4 {[%clk 01:08:04]} {[%emt 00:02:07]} h4 {[%clk 01:23:39]} {[%emt 00:01:58]}
11. d4 {[%clk 00:54:17]} {[%emt 00:14:18]} Ng4 {[%clk 01:19:34]} {[%emt
00:04:34]} 12. h3 {[%clk 00:50:38]} {[%emt 00:04:09]} Nf6 {[%clk 01:18:49]}
{[%emt 00:01:15]} 13. e4 {[%clk 00:47:19]} {[%emt 00:03:50]} g5 {[%clk
01:16:42]} {[%emt 00:02:36]} 14. Nfe2 {[%clk 00:36:05]} {[%emt 00:11:44]} g4
{[%clk 01:15:51]} {[%emt 00:01:21]} 15. Nf4 {[%clk 00:27:42]} {[%emt 00:08:53]}
gxh3 {[%clk 01:12:59]} {[%emt 00:03:21]} 16. Bf3 {[%clk 00:23:04]} {[%emt
00:05:08]} hxg3 {[%clk 01:12:04]} {[%emt 00:01:24]} 17. e5 {[%clk 00:23:07]}
{[%emt 00:00:28]} Ng4 {[%clk 01:01:00]} {[%emt 00:11:34]} 18. e6 {[%clk
00:15:08]} {[%emt 00:08:28]} Bxe6 {[%clk 00:59:17]} {[%emt 00:02:14]} 19. Nxe6
{[%clk 00:11:05]} {[%emt 00:04:34]} fxe6 {[%clk 00:59:31]} {[%emt 00:00:16]} 20.
Qd3 {[%clk 00:10:41]} {[%emt 00:00:53]} g2 {[%clk 00:57:14]} {[%emt 00:02:46]}
21. Qg6+ {[%clk 00:10:32]} {[%emt 00:00:39]} Kd7 {[%clk 00:57:10]} {[%emt
00:00:34]} 22. Qxg4 {[%clk 00:08:04]} {[%emt 00:02:58]} gxh1=Q+ {[%clk
00:57:33]} {[%emt 00:00:06]} 23. Bxh1 {[%clk 00:08:30]} {[%emt 00:00:04]} Qg8
{[%clk 00:57:32]} {[%emt 00:00:31]} 0-1

[Event "20th Rochefort Chess Festival - Masters"]
[Site "Rochefort, France"]
[Date "2022.02.13"]
[Round "2.1"]
[White "Hutois, Mickael"]
[Black "Bauer, Christian"]
[Result "0-1"]
[TimeControl "1h30 + [30'']"]
[WhiteElo "2262"]
[BlackElo "2613"]

1. e4 {[%clk 01:26:12]} {[%emt 00:04:47]} c5 {[%clk 01:30:50]} {[%emt
00:00:11]} 2. Nf3 {[%clk 01:26:35]} {[%emt 00:00:07]} Nc6 {[%clk 01:31:14]}
{[%emt 00:00:06]} 3. d4 {[%clk 01:26:58]} {[%emt 00:00:07]} cxd4 {[%clk
01:31:38]} {[%emt 00:00:06]} 4. Nxd4 {[%clk 01:27:22]} {[%emt 00:00:06]} Qb6
{[%clk 01:32:00]} {[%emt 00:00:07]} 5. Nb3 {[%clk 01:27:45]} {[%emt 00:00:07]}
Nf6 {[%clk 01:32:24]} {[%emt 00:00:06]} 6. Nc3 {[%clk 01:28:11]} {[%emt
00:00:04]} e6 {[%clk 01:32:48]} {[%emt 00:00:06]} 7. Be3 {[%clk 01:28:31]}
{[%emt 00:00:11]} Qc7 {[%clk 01:33:11]} {[%emt 00:00:07]} 8. a3 {[%clk
01:28:54]} {[%emt 00:00:07]} a6 {[%clk 01:32:59]} {[%emt 00:00:42]} 9. f4
{[%clk 01:29:07]} {[%emt 00:00:16]} d6 {[%clk 01:32:30]} {[%emt 00:00:59]} 10.
Qf3 {[%clk 01:25:03]} {[%emt 00:04:34]} b5 {[%clk 01:30:30]} {[%emt 00:02:30]}
11. g4 {[%clk 01:14:11]} {[%emt 00:11:22]} Nd7 {[%clk 01:19:04]} {[%emt
00:11:57]} 12. Qf2 {[%clk 01:07:32]} {[%emt 00:07:08]} Rb8 {[%clk 01:16:56]}
{[%emt 00:02:39]} 13. O-O-O {[%clk 01:01:04]} {[%emt 00:06:57]} b4 {[%clk
01:04:01]} {[%emt 00:13:26]} 14. axb4 {[%clk 01:01:12]} {[%emt 00:00:22]} Rxb4
{[%clk 01:03:47]} {[%emt 00:00:44]} 15. e5 {[%clk 00:53:36]} {[%emt 00:08:05]}
Be7 {[%clk 00:42:22]} {[%emt 00:21:56]} 16. exd6 {[%clk 00:43:03]} {[%emt
00:11:03]} Bxd6 {[%clk 00:41:24]} {[%emt 00:01:28]} 17. Rxd6 {[%clk 00:43:26]}
{[%emt 00:00:07]} Qxd6 {[%clk 00:41:45]} {[%emt 00:00:09]} 18. Bg2 {[%clk
00:43:51]} {[%emt 00:00:05]} O-O {[%clk 00:36:56]} {[%emt 00:05:19]} 19. Rd1
{[%clk 00:35:16]} {[%emt 00:09:05]} Qc7 {[%clk 00:37:18]} {[%emt 00:00:08]} 20.
Rd3 {[%clk 00:35:19]} {[%emt 00:00:27]} Na5 {[%clk 00:32:04]} {[%emt 00:05:44]}
21. Nxa5 {[%clk 00:21:40]} {[%emt 00:14:09]} Qxa5 {[%clk 00:32:28]} {[%emt
00:00:06]} 22. Bd4 {[%clk 00:21:55]} {[%emt 00:00:15]} e5 {[%clk 00:30:04]}
{[%emt 00:02:54]} 23. fxe5 {[%clk 00:19:18]} {[%emt 00:03:06]} Nxe5 {[%clk
00:29:09]} {[%emt 00:01:25]} 24. Rh3 {[%clk 00:19:27]} {[%emt 00:00:21]} Bxg4
{[%clk 00:20:08]} {[%emt 00:09:31]} 25. Rg3 {[%clk 00:15:01]} {[%emt 00:04:56]}
Rd8 {[%clk 00:19:39]} {[%emt 00:01:00]} 26. Bd5 {[%clk 00:11:23]} {[%emt
00:04:08]} Rxd5 {[%clk 00:19:48]} {[%emt 00:00:21]} 27. Nxd5 {[%clk 00:11:48]}
{[%emt 00:00:04]} Qxd5 {[%clk 00:17:41]} {[%emt 00:02:37]} 28. c3 {[%clk
00:12:13]} {[%emt 00:00:05]} Ra4 {[%clk 00:12:15]} {[%emt 00:05:56]} 29. Qf4
{[%clk 00:10:05]} {[%emt 00:02:37]} Qh1+ {[%clk 00:11:59]} {[%emt 00:00:46]}
0-1

[Event "20th Rochefort Chess Festival - Masters"]
[Site "Rochefort, France"]
[Date "2022.02.13"]
[Round "2.4"]
[White "Besson, Bastien"]
[Black "Mirzoev, Emil"]
[Result "1/2-1/2"]
[TimeControl "1h30 + [30'']"]
[WhiteElo "2196"]
[BlackElo "2460"]

1. e4 {[%clk 01:27:05]} {[%emt 00:03:54]} c5 {[%clk 01:17:40]} {[%emt
00:13:20]} 2. Nf3 {[%clk 01:27:28]} {[%emt 00:00:06]} Nc6 {[%clk 01:17:59]}
{[%emt 00:00:13]} 3. d4 {[%clk 01:27:52]} {[%emt 00:00:06]} cxd4 {[%clk
01:18:15]} {[%emt 00:00:14]} 4. Nxd4 {[%clk 01:28:15]} {[%emt 00:00:07]} Nf6
{[%clk 01:18:40]} {[%emt 00:00:04]} 5. Nc3 {[%clk 01:28:38]} {[%emt 00:00:08]}
d6 {[%clk 01:19:00]} {[%emt 00:00:10]} 6. Bg5 {[%clk 01:28:31]} {[%emt
00:00:36]} Bd7 {[%clk 01:19:24]} {[%emt 00:00:07]} 7. Qd2 {[%clk 01:27:47]}
{[%emt 00:01:13]} Rc8 {[%clk 01:19:37]} {[%emt 00:00:18]} 8. O-O-O {[%clk
01:26:46]} {[%emt 00:01:31]} Nxd4 {[%clk 01:19:40]} {[%emt 00:00:26]} 9. Qxd4
{[%clk 01:26:58]} {[%emt 00:00:19]} Qa5 {[%clk 01:19:41]} {[%emt 00:00:28]} 10.
Bd2 {[%clk 01:11:34]} {[%emt 00:15:55]} a6 {[%clk 01:18:29]} {[%emt 00:01:42]}
11. Kb1 {[%clk 01:10:25]} {[%emt 00:01:38]} Qc5 {[%clk 01:17:37]} {[%emt
00:01:22]} 12. Qxc5 {[%clk 01:04:35]} {[%emt 00:06:21]} Rxc5 {[%clk 01:15:00]}
{[%emt 00:03:07]} 13. Be3 {[%clk 01:04:49]} {[%emt 00:00:16]} Rxc3 {[%clk
00:59:59]} {[%emt 00:15:31]} 14. bxc3 {[%clk 01:05:17]} {[%emt 00:00:02]} Nxe4
{[%clk 01:00:21]} {[%emt 00:00:08]} 15. Kb2 {[%clk 01:01:04]} {[%emt 00:04:44]}
Bc6 {[%clk 01:00:32]} {[%emt 00:00:19]} 16. f3 {[%clk 00:54:09]} {[%emt
00:07:25]} Nf6 {[%clk 01:00:57]} {[%emt 00:00:05]} 17. c4 {[%clk 00:51:58]}
{[%emt 00:02:41]} Nd7 {[%clk 00:55:22]} {[%emt 00:06:04]} 18. Bd4 {[%clk
00:49:59]} {[%emt 00:02:29]} Kd8 {[%clk 00:47:20]} {[%emt 00:08:33]} 19. Bd3
{[%clk 00:45:26]} {[%emt 00:05:03]} Kc7 {[%clk 00:45:03]} {[%emt 00:02:46]} 20.
Be4 {[%clk 00:43:36]} {[%emt 00:02:21]} e6 {[%clk 00:35:55]} {[%emt 00:09:39]}
21. Rhe1 {[%clk 00:38:45]} {[%emt 00:05:21]} h5 {[%clk 00:32:20]} {[%emt
00:04:05]} 22. f4 {[%clk 00:32:33]} {[%emt 00:06:41]} h4 {[%clk 00:23:19]}
{[%emt 00:09:31]} 23. Rd3 {[%clk 00:24:01]} {[%emt 00:09:02]} Rh5 {[%clk
00:20:26]} {[%emt 00:03:23]} 24. Rh3 {[%clk 00:21:58]} {[%emt 00:02:33]} g6
{[%clk 00:09:21]} {[%emt 00:11:35]} 25. g4 {[%clk 00:21:03]} {[%emt 00:01:25]}
Rh7 {[%clk 00:09:41]} {[%emt 00:00:05]} 26. g5 {[%clk 00:18:39]} {[%emt
00:02:58]} e5 {[%clk 00:08:31]} {[%emt 00:01:41]} 27. Bxc6 {[%clk 00:17:33]}
{[%emt 00:01:36]} Kxc6 {[%clk 00:08:39]} {[%emt 00:00:23]} 28. fxe5 {[%clk
00:17:24]} {[%emt 00:00:39]} dxe5 {[%clk 00:07:45]} {[%emt 00:01:24]} 29. Bf2
{[%clk 00:15:37]} {[%emt 00:02:17]} Bc5 {[%clk 00:06:54]} {[%emt 00:01:21]} 30.
Bxc5 {[%clk 00:15:23]} {[%emt 00:00:44]} Kxc5 {[%clk 00:07:17]} {[%emt
00:00:07]} 31. Re4 {[%clk 00:15:09]} {[%emt 00:00:43]} Rh5 {[%clk 00:07:27]}
{[%emt 00:00:21]} 32. Rg4 {[%clk 00:15:09]} {[%emt 00:00:30]} e4 {[%clk
00:06:49]} {[%emt 00:01:09]} 33. Rxe4 {[%clk 00:12:48]} {[%emt 00:02:50]} Rxg5
{[%clk 00:07:18]} {[%emt 00:00:01]} 34. Rd3 {[%clk 00:11:05]} {[%emt 00:02:12]}
Nb6 {[%clk 00:07:04]} {[%emt 00:00:45]} 35. Kb3 {[%clk 00:11:02]} {[%emt
00:00:33]} Rg1 {[%clk 00:04:46]} {[%emt 00:02:48]} 36. Rxh4 {[%clk 00:09:34]}
{[%emt 00:01:58]} Rb1+ {[%clk 00:02:43]} {[%emt 00:02:33]} 37. Kc3 {[%clk
00:10:02]} {[%emt 00:00:02]} Na4+ {[%clk 00:03:02]} {[%emt 00:00:12]} 38. Kd2
{[%clk 00:10:30]} {[%emt 00:00:02]} Nb6 {[%clk 00:03:22]} {[%emt 00:00:10]} 39.
Kc3 {[%clk 00:09:57]} {[%emt 00:01:03]} Na4+ {[%clk 00:03:45]} {[%emt
00:00:07]} 40. Kd2 {[%clk 00:10:25]} Nb6 {[%clk 00:04:10]} {[%emt 00:00:06]} 41.
Rh8 {[%clk 00:09:39]} {[%emt 00:01:15]} Nxc4+ {[%clk 00:03:46]} {[%emt
00:00:56]} 42. Kc3 {[%clk 00:10:01]} {[%emt 00:00:08]} Nd6 {[%clk 00:04:07]}
{[%emt 00:00:07]} 43. Kd2 {[%clk 00:09:21]} {[%emt 00:01:11]} b5 {[%clk
00:03:51]} {[%emt 00:00:47]} 44. Ra8 {[%clk 00:07:11]} {[%emt 00:02:39]} Nc4+
{[%clk 00:03:18]} {[%emt 00:01:04]} 45. Ke2 {[%clk 00:07:37]} {[%emt 00:00:04]}
Rb2 {[%clk 00:03:40]} {[%emt 00:00:08]} 46. Rxa6 {[%clk 00:06:32]} {[%emt
00:01:34]} Rxc2+ {[%clk 00:04:01]} {[%emt 00:00:09]} 47. Ke1 {[%clk 00:06:32]}
{[%emt 00:00:30]} Rxh2 {[%clk 00:04:07]} {[%emt 00:00:24]} 48. Ra7 {[%clk
00:05:11]} {[%emt 00:01:51]} f5 {[%clk 00:02:51]} {[%emt 00:01:46]} 49. Rc7+
{[%clk 00:03:51]} {[%emt 00:01:49]} Kb6 {[%clk 00:03:20]} {[%emt 00:00:01]} 50.
Rg7 {[%clk 00:03:47]} {[%emt 00:00:34]} Rg2 {[%clk 00:03:39]} {[%emt 00:00:11]}
51. Kf1 {[%clk 00:04:07]} {[%emt 00:00:11]} Rg4 {[%clk 00:03:50]} {[%emt
00:00:17]} 52. Rd8 {[%clk 00:04:09]} {[%emt 00:00:30]} Kc5 {[%clk 00:03:23]}
{[%emt 00:00:56]} 53. Rc7+ {[%clk 00:02:48]} {[%emt 00:01:51]} Kb4 {[%clk
00:03:40]} {[%emt 00:00:14]} 54. Rb8 {[%clk 00:02:22]} {[%emt 00:00:55]} Re4
{[%clk 00:03:06]} {[%emt 00:01:02]} 55. Rc6 {[%clk 00:01:19]} {[%emt 00:01:35]}
g5 {[%clk 00:03:14]} {[%emt 00:00:22]} 56. Rf6 {[%clk 00:00:58]} {[%emt
00:00:51]} g4 {[%clk 00:03:15]} {[%emt 00:00:29]} 57. Kf2 {[%clk 00:01:16]}
{[%emt 00:00:12]} Rf4+ {[%clk 00:03:38]} {[%emt 00:00:06]} 58. Ke2 {[%clk
00:01:01]} {[%emt 00:00:45]} Re4+ {[%clk 00:03:18]} {[%emt 00:00:50]} 59. Kf2
{[%clk 00:01:23]} {[%emt 00:00:08]} f4 {[%clk 00:03:29]} {[%emt 00:00:19]} 60.
Rbf8 {[%clk 00:00:52]} {[%emt 00:01:01]} Ne5 {[%clk 00:03:46]} {[%emt
00:00:13]} 61. Rf5 {[%clk 00:00:31]} {[%emt 00:00:52]} Nd3+ {[%clk 00:03:45]}
{[%emt 00:00:31]} 62. Kf1 {[%clk 00:01:00]} {[%emt 00:00:01]} Re1+ {[%clk
00:04:00]} {[%emt 00:00:15]} 63. Kg2 {[%clk 00:01:29]} {[%emt 00:00:01]} Re2+
{[%clk 00:03:08]} {[%emt 00:01:21]} 64. Kg1 {[%clk 00:01:55]} {[%emt 00:00:05]}
g3 {[%clk 00:01:22]} {[%emt 00:02:16]} 65. Rb8 {[%clk 00:01:28]} {[%emt
00:00:56]} Kc4 {[%clk 00:01:27]} {[%emt 00:00:23]} 66. Rbxb5 {[%clk 00:01:27]}
{[%emt 00:00:33]} Rf2 {[%clk 00:00:41]} {[%emt 00:01:15]} 67. Rb1 {[%clk
00:00:46]} {[%emt 00:01:11]} Kd4 {[%clk 00:00:54]} {[%emt 00:00:16]} 68. Rf1
{[%clk 00:00:47]} {[%emt 00:00:30]} Rxf1+ {[%clk 00:00:34]} {[%emt 00:00:50]}
69. Kxf1 {[%clk 00:01:10]} {[%emt 00:00:07]} Ke4 {[%clk 00:01:03]} 70. Rg5
{[%clk 00:01:18]} {[%emt 00:00:22]} Nb4 {[%clk 00:00:36]} {[%emt 00:00:57]} 71.
a4 {[%clk 00:01:18]} {[%emt 00:00:29]} Kd4 {[%clk 00:00:40]} {[%emt 00:00:25]}
72. Kg2 {[%clk 00:01:21]} {[%emt 00:00:28]} Kc4 {[%clk 00:00:38]} {[%emt
00:00:32]} 73. a5 {[%clk 00:01:34]} {[%emt 00:00:16]} Na6 {[%clk 00:01:00]}
{[%emt 00:00:09]} 74. Kf3 {[%clk 00:01:48]} {[%emt 00:00:16]} Kb4 {[%clk
00:01:25]} {[%emt 00:00:04]} 75. Kxf4 {[%clk 00:01:21]} {[%emt 00:00:58]} g2
{[%clk 00:01:52]} {[%emt 00:00:04]} 76. Ke3 {[%clk 00:01:24]} {[%emt 00:00:25]}
g1=Q+ {[%clk 00:02:15]} {[%emt 00:00:08]} 77. Rxg1 {[%clk 00:01:46]} {[%emt
00:00:07]} Kxa5 {[%clk 00:02:43]} {[%emt 00:00:02]} 78. Kd4 {[%clk 00:01:50]}
{[%emt 00:00:26]} Kb5 {[%clk 00:03:01]} {[%emt 00:00:11]} 79. Ke4 {[%clk
00:00:59]} {[%emt 00:00:20]} 1/2-1/2

[Event "20th Rochefort Chess Festival - Masters"]
[Site "Rochefort, France"]
[Date "2022.02.13"]
[Round "2.2"]
[White "Galperin, Platon"]
[Black "Selebran, Henri"]
[Result "1-0"]
[TimeControl "1h30 + [30'']"]
[WhiteElo "2522"]
[BlackElo "2094"]

1. c4 {[%clk 01:13:20]} {[%emt 00:17:39]} Nf6 {[%clk 01:30:18]} {[%emt
00:00:42]} 2. Nc3 {[%clk 01:13:46]} {[%emt 00:00:05]} c5 {[%clk 01:30:24]}
{[%emt 00:00:23]} 3. Nf3 {[%clk 01:14:11]} {[%emt 00:00:05]} Nc6 {[%clk
01:30:09]} {[%emt 00:00:45]} 4. e3 {[%clk 01:14:34]} {[%emt 00:00:07]} g6
{[%clk 01:26:57]} {[%emt 00:03:41]} 5. d4 {[%clk 01:14:21]} {[%emt 00:00:44]}
cxd4 {[%clk 01:26:24]} {[%emt 00:01:03]} 6. exd4 {[%clk 01:14:47]} {[%emt
00:00:04]} d5 {[%clk 01:25:27]} {[%emt 00:01:26]} 7. cxd5 {[%clk 01:15:12]}
{[%emt 00:00:05]} Nxd5 {[%clk 01:25:40]} {[%emt 00:00:17]} 8. Qb3 {[%clk
01:15:16]} {[%emt 00:00:26]} Nxc3 {[%clk 01:22:57]} {[%emt 00:03:12]} 9. Bc4
{[%clk 01:15:26]} {[%emt 00:00:19]} e6 {[%clk 01:21:33]} {[%emt 00:01:56]} 10.
bxc3 {[%clk 01:15:25]} {[%emt 00:00:30]} Bg7 {[%clk 01:13:16]} {[%emt
00:08:46]} 11. Ba3 {[%clk 01:15:37]} {[%emt 00:00:20]} Bf8 {[%clk 01:07:08]}
{[%emt 00:06:37]} 12. h4 {[%clk 01:02:47]} {[%emt 00:13:20]} h5 {[%clk
00:56:39]} {[%emt 00:10:58]} 13. O-O {[%clk 01:01:55]} {[%emt 00:01:23]} Bxa3
{[%clk 00:55:45]} {[%emt 00:01:24]} 14. Qxa3 {[%clk 01:02:22]} {[%emt
00:00:04]} Qe7 {[%clk 00:55:00]} {[%emt 00:01:14]} 15. Qc1 {[%clk 01:02:40]}
{[%emt 00:00:11]} O-O {[%clk 00:53:57]} {[%emt 00:01:33]} 16. Re1 {[%clk
01:02:48]} {[%emt 00:00:23]} Qf6 {[%clk 00:52:26]} {[%emt 00:02:01]} 17. Ng5
{[%clk 01:02:46]} {[%emt 00:00:32]} Ne7 {[%clk 00:46:35]} {[%emt 00:06:21]} 18.
Ne4 {[%clk 01:02:19]} {[%emt 00:00:57]} Qg7 {[%clk 00:42:07]} {[%emt 00:04:57]}
19. Qg5 {[%clk 00:50:06]} {[%emt 00:12:43]} f6 {[%clk 00:38:02]} {[%emt
00:04:35]} 20. Qf4 {[%clk 00:48:09]} {[%emt 00:02:27]} Nd5 {[%clk 00:36:13]}
{[%emt 00:02:19]} 21. Bxd5 {[%clk 00:48:28]} {[%emt 00:00:12]} exd5 {[%clk
00:36:36]} {[%emt 00:00:06]} 22. Nd6 {[%emt 00:09:34]} Qc7 {[%emt 00:00:27]} 23.
Re3 {[%emt 00:00:05]} Bf5 {[%emt 00:00:02]} 24. Rae1 {[%emt 00:00:07]} Be4
{[%emt 00:00:26]} 25. g3 Rad8 {[%emt 00:00:02]} 26. f3 1-0


[ePGN "0.1;DGT LiveChess/2.2.5"]

[Event "20th Rochefort Chess Festival - Masters"]
[Site "Rochefort, France"]
[Date "2022.02.13"]
[Round "3.4"]
[White "Duboue, Peio"]
[Black "Savina, Anastasia"]
[Result "1-0"]
[TimeControl "1h30 + [30'']"]
[WhiteElo "2412"]
[BlackElo "2343"]

1. e4 {[%clk 01:30:57]} {[%emt 00:00:02]} d6 {[%clk 01:30:30]} {[%emt
00:00:30]} 2. d4 {[%clk 01:31:20]} {[%emt 00:00:05]} Nf6 {[%clk 01:30:52]}
{[%emt 00:00:11]} 3. Nc3 {[%clk 01:31:41]} {[%emt 00:00:09]} e5 {[%clk
01:31:14]} {[%emt 00:00:07]} 4. dxe5 {[%clk 01:30:52]} {[%emt 00:01:19]} dxe5
{[%clk 01:31:40]} {[%emt 00:00:05]} 5. Qxd8+ {[%clk 01:31:17]} {[%emt
00:00:05]} Kxd8 {[%clk 01:32:06]} {[%emt 00:00:04]} 6. Bc4 {[%clk 01:29:34]}
{[%emt 00:02:12]} Be6 {[%clk 01:26:51]} {[%emt 00:05:45]} 7. Bxe6 {[%clk
01:29:58]} {[%emt 00:00:06]} fxe6 {[%clk 01:27:19]} {[%emt 00:00:03]} 8. f3
{[%clk 01:30:01]} {[%emt 00:00:27]} Nbd7 {[%clk 01:26:09]} {[%emt 00:01:40]} 9.
Nh3 {[%clk 01:28:11]} {[%emt 00:02:20]} Bd6 {[%clk 01:14:28]} {[%emt 00:12:11]}
10. Nf2 {[%clk 01:27:34]} {[%emt 00:01:06]} a6 {[%clk 01:14:35]} {[%emt
00:00:24]} 11. Nd3 {[%clk 01:21:55]} {[%emt 00:06:08]} Nc5 {[%clk 01:12:01]}
{[%emt 00:03:04]} 12. Nxc5 {[%clk 01:21:19]} {[%emt 00:01:06]} Bxc5 {[%clk
01:12:27]} {[%emt 00:00:05]} 13. Nd1 {[%clk 01:21:01]} {[%emt 00:00:47]} h6
{[%clk 01:00:55]} {[%emt 00:12:02]} 14. Be3 {[%clk 01:19:19]} {[%emt 00:02:12]}
Bb4+ {[%clk 00:53:40]} {[%emt 00:07:46]} 15. Ke2 {[%clk 01:18:53]} {[%emt
00:00:55]} Ke7 {[%clk 00:53:43]} {[%emt 00:00:28]} 16. Nf2 {[%clk 01:17:54]}
{[%emt 00:01:28]} Bd6 {[%clk 00:53:26]} {[%emt 00:00:48]} 17. Nd3 {[%clk
01:15:32]} {[%emt 00:02:51]} Nd7 {[%clk 00:39:06]} {[%emt 00:14:51]} 18. h4
{[%clk 01:10:50]} {[%emt 00:05:11]} b5 {[%clk 00:36:40]} {[%emt 00:02:57]} 19.
Rhc1 {[%clk 01:05:05]} {[%emt 00:06:15]} Nb6 {[%clk 00:21:54]} {[%emt
00:15:16]} 20. b3 {[%clk 00:57:24]} {[%emt 00:08:11]} Ba3 {[%clk 00:15:30]}
{[%emt 00:06:54]} 21. Rd1 {[%clk 00:53:59]} {[%emt 00:03:55]} Bd6 {[%clk
00:11:46]} {[%emt 00:04:15]} 22. Bc1 {[%clk 00:49:25]} {[%emt 00:05:03]} Nd7
{[%clk 00:09:57]} {[%emt 00:02:20]} 23. Bb2 {[%clk 00:49:03]} {[%emt 00:00:52]}
g5 {[%clk 00:09:54]} {[%emt 00:00:32]} 24. Rh1 {[%clk 00:38:29]} {[%emt
00:11:04]} c5 {[%clk 00:07:46]} {[%emt 00:02:38]} 25. c4 {[%clk 00:36:32]}
{[%emt 00:02:27]} bxc4 {[%clk 00:07:36]} {[%emt 00:00:41]} 26. bxc4 {[%clk
00:36:57]} {[%emt 00:00:04]} Rab8 {[%clk 00:07:46]} {[%emt 00:00:20]} 27. Rab1
{[%clk 00:36:11]} {[%emt 00:01:16]} g4 {[%clk 00:01:59]} {[%emt 00:06:17]} 28.
fxg4 {[%clk 00:32:21]} {[%emt 00:04:20]} Rhg8 {[%clk 00:02:10]} {[%emt
00:00:19]} 29. g5 {[%clk 00:30:22]} {[%emt 00:02:28]} hxg5 {[%clk 00:02:36]}
{[%emt 00:00:05]} 30. h5 {[%clk 00:29:21]} {[%emt 00:01:31]} Nf6 {[%clk
00:01:07]} {[%emt 00:01:59]} 31. Bxe5 {[%clk 00:20:10]} {[%emt 00:09:41]} Nxe4
{[%clk 00:01:04]} {[%emt 00:00:33]} 32. Ke3 {[%clk 00:16:07]} {[%emt 00:04:33]}
Ng3 {[%clk 00:00:32]} {[%emt 00:01:02]} 33. Bxg3 {[%clk 00:15:53]} {[%emt
00:00:44]} Bxg3 {[%clk 00:01:01]} {[%emt 00:00:02]} 34. Nxc5 {[%clk 00:16:02]}
{[%emt 00:00:21]} Bf4+ {[%clk 00:00:50]} {[%emt 00:00:41]} 35. Kf3 {[%clk
00:15:25]} {[%emt 00:01:07]} Bd6 {[%clk 00:00:34]} {[%emt 00:00:46]} 36. Rxb8
{[%clk 00:15:20]} {[%emt 00:00:35]} Rxb8 {[%clk 00:01:02]} {[%emt 00:00:02]} 37.
Ne4 {[%clk 00:15:37]} {[%emt 00:00:13]} Rf8+ {[%clk 00:00:42]} {[%emt
00:00:49]} 38. Ke2 {[%clk 00:16:05]} {[%emt 00:00:02]} Be5 {[%clk 00:00:32]}
{[%emt 00:00:40]} 39. Nxg5 {[%clk 00:16:10]} {[%emt 00:00:25]} Rg8 {[%clk
00:00:37]} {[%emt 00:00:25]} 40. Nf3 {[%clk 00:16:39]} 1-0